bitfinex/quotes_SOLUSD_20260114
["timestamp","ask_amount","ask_price","bid_price","bid_amount"]
[1768356753445,0.67677502,145.96,145.91,6.85331243]
[1768356754428,7.52798651,145.96,145.91,6.85331243]
[1768356755742,0.6980067,145.95,145.9,6.85400959]
[1768356755936,0.6980067,145.95,145.89,19.3344246]
[1768356757247,7.54981264,145.95,145.89,19.3344246]
[1768356757439,7.54981497,145.95,145.89,19.3344246]
[1768356757970,0.6980067,145.94,145.89,6.8544246]
[1768356758138,13.1780067,145.97,145.92,9.64975692]
[1768356758455,0.6980067,145.96,145.92,9.64975692]
[1768356758949,0.6980067,145.96,145.91,9.64975692]
[1768356759251,0.6980067,145.96,145.9,9.64975692]
[1768356759252,0.6980067,145.95,145.9,9.64975692]
[1768356759629,0.6980067,145.95,145.9,16.50359318]
[1768356760137,0.6980067,145.95,145.9,9.64975692]
[1768356760755,0.6980067,145.95,145.9,6.85394382]
[1768356760939,0.6980067,145.95,145.9,16.50370074]
[1768356761147,0.6980067,145.95,145.91,6.8535115]
[1768356761839,0.6980067,145.95,145.91,16.50326842]
[1768356762247,0.6980067,145.95,145.9,6.8539043]
[1768356762439,7.54976735,145.95,145.9,16.50366122]
[1768356762745,0.6980067,145.94,145.9,6.8539043]
[1768356763148,0.6980067,145.94,145.9,16.50366122]
[1768356764050,0.6980067,145.95,145.91,9.64975692]
[1768356764256,0.6980067,145.95,145.9,6.8539043]
[1768356764557,0.6980067,145.95,145.91,9.64975692]
[1768356765141,0.6980067,145.95,145.9,6.8539043]
[1768356765350,0.6980067,145.95,145.91,9.64975692]
[1768356765755,0.6980067,145.95,145.91,16.50327603]
[1768356765955,0.6980067,145.95,145.91,6.85351911]
[1768356766658,0.6980067,145.95,145.91,16.50327603]
[1768356767057,0.6980067,145.95,145.91,9.64975692]
[1768356767248,7.54892539,145.97,145.93,9.64975692]
[1768356767450,7.54892539,145.97,145.92,9.64975692]
[1768356767644,0.6980067,145.99,145.94,9.64975692]
[1768356767840,0.6980067,145.99,145.92,6.6801107]
[1768356768041,0.6980067,145.96,145.91,9.64975692]
[1768356768363,0.6980067,145.96,145.9,16.32986762]
[1768356768854,0.6980067,145.96,145.91,9.64975692]
[1768356769161,0.6980067,145.96,145.92,6.85307017]
[1768356769350,0.6980067,145.96,145.91,6.8533617]
[1768356769548,0.6980067,145.96,145.91,16.50311862]
[1768356770246,0.6980067,145.95,145.9,6.85386053]
[1768356770548,0.6980067,145.95,145.9,6.8538998]
[1768356771138,0.6980067,145.94,145.9,16.50365672]
[1768356773563,0.6980067,145.94,145.9,33.6386807]
[1768356774158,0.6980067,145.94,145.9,23.98892378]
[1768356774341,0.6980067,145.94,145.9,33.6386807]
[1768356774662,0.6980067,145.94,145.88,16.50429503]
[1768356774663,0.6980067,145.93,145.88,16.50429503]
[1768356775252,0.6980067,145.93,145.88,6.85453811]
[1768356775446,0.6980067,145.93,145.89,9.64975692]
[1768356776045,0.6980067,145.93,145.9,9.64975692]
[1768356776362,0.6980067,145.93,145.88,6.85453811]
[1768356776664,0.6980067,145.93,145.88,16.50429503]
[1768356777164,0.6980067,145.93,145.89,9.64975692]
[1768356777359,0.6980067,145.93,145.87,23.99396722]
[1768356777552,0.6980067,145.93,145.89,9.64975692]
[1768356777968,0.6980067,145.93,145.87,23.99396722]
[1768356778144,0.6980067,145.93,145.89,9.64975692]
[1768356778465,0.6980067,145.93,145.9,9.64975692]
[1768356778655,0.6980067,145.93,145.89,9.64975692]
[1768356779256,0.6980067,145.93,145.89,16.50391307]
[1768356779464,0.66800671,145.93,145.89,16.50391307]
[1768356779971,0.66800671,145.93,145.89,6.85415615]
[1768356780272,6.85167604,145.95,145.89,16.53391306]
[1768356781451,0.6980067,145.94,145.89,6.85415615]
[1768356781659,0.6980067,145.94,145.89,16.50391307]
[1768356782367,0.6980067,145.94,145.89,6.85415615]
[1768356782562,0.6980067,145.94,145.88,17.16686455]
[1768356782767,0.6980067,145.94,145.89,9.64975692]
[1768356783067,0.6980067,145.96,145.9,9.67975691]
[1768356783364,0.6980067,145.98,145.93,9.64975692]
[1768356784663,0.6980067,145.98,145.93,16.50214754]
[1768356784868,0.6980067,145.97,145.93,16.50214754]
[1768356785366,0.68499902,145.96,145.93,6.85239062]
[1768356785951,0.68499902,145.96,145.93,9.64975692]
[1768356787546,0.68499902,146.02,145.95,9.64975692]
[1768356787766,26.77021922,146.03,145.97,9.64975692]
[1768356787767,0.68499902,146.0,145.97,9.64975692]
[1768356788356,0.68499902,146.0,145.98,9.64975692]
[1768356788856,0.68499902,146.0,145.97,6.85067153]
[1768356789049,0.68499902,146.0,145.98,9.64975692]
[1768356790352,0.68499902,146.02,145.98,16.499994]
[1768356790553,0.68499902,146.02,145.99,9.64975692]
[1768356791670,0.68499902,146.02,145.98,6.85013021]
[1768356791877,0.68499902,146.02,146.0,9.64975692]
[1768356792665,0.68499902,146.02,145.99,6.84959859]
[1768356792867,17.11546586,146.07,146.0,9.64975692]
[1768356793170,0.68499902,146.04,146.01,9.64975692]
[1768356793362,0.68499902,146.04,145.99,6.87960657]
[1768356793557,0.68499902,146.07,146.02,9.64975692]
[1768356793759,5.78837971,146.06,146.01,12.50999999]
[1768356793975,0.68499902,146.06,146.04,9.64975692]
[1768356794181,0.68499902,146.05,145.99,19.32964462]
[1768356794370,0.68499902,146.04,146.0,9.64975692]
[1768356795173,0.68499902,146.04,146.01,9.64975692]
[1768356795471,6.84735583,146.05,146.01,9.67975691]
[1768356795672,0.68499902,146.12,146.04,9.64975692]
[1768356795858,16.94814259,146.13,146.05,22.12975692]
[1768356795859,0.68499902,146.1,146.05,22.12975692]
[1768356796371,0.68499902,146.1,146.05,9.64975692]
[1768356796976,0.68499902,146.08,146.05,9.64975692]
[1768356798077,0.68499902,146.08,146.05,6.84670245]
[1768356798263,0.68499902,146.08,146.05,16.49645937]
[1768356799059,0.68499902,146.08,146.04,12.48]
[1768356799462,0.6699605,146.07,146.02,9.64975692]
[1768356799661,0.6699605,146.07,146.02,22.12975692]
[1768356800969,0.6699605,146.06,146.02,12.48]
[1768356801172,0.6699605,146.05,146.02,12.48]
[1768356801877,0.6699605,146.07,146.02,19.32825324]
[1768356802078,0.6699605,146.07,146.03,9.64975692]
[1768356803180,0.6699605,146.06,146.02,19.32825324]
[1768356803381,0.6699605,146.06,146.02,28.97801016]
[1768356805581,0.6699605,146.08,146.04,9.64975692]
[1768356805784,17.10969181,146.12,146.04,9.64975692]
[1768356805785,0.6699605,146.1,146.04,0.02999999]
[1768356805971,0.6699605,146.09,146.05,9.64975692]
[1768356806586,0.6699605,146.09,146.04,9.64975692]
[1768356806771,0.6699605,146.08,146.03,0.02999999]
[1768356806971,0.6699605,146.08,146.03,9.67975691]
[1768356807387,0.6699605,146.08,146.03,3.80631543]
[1768356807583,0.63996051,146.08,146.04,6.84743905]
[1768356810096,4.44627594,146.09,146.04,6.90743903]
[1768356810586,0.6699605,146.07,146.03,6.84773692]
[1768356810787,4.44627594,146.07,146.02,12.53999998]
[1768356811366,0.6699605,146.06,146.01,56.21631542]
[1768356811694,0.6699605,146.06,146.03,6.84779763]
[1768356811996,0.6699605,146.06,146.02,6.84837693]
[1768356815678,0.6699605,146.06,146.02,12.75029664]
[1768356816896,0.6699605,146.06,146.02,6.84837693]
[1768356817096,0.6699605,146.06,146.03,5.90191971]
[1768356818276,0.6699605,146.06,146.02,6.84837693]
[1768356818482,0.6699605,146.06,146.03,5.90191971]
[1768356819093,0.6699605,146.06,146.02,12.75029664]
[1768356820193,0.6699605,146.06,146.0,57.02282224]
[1768356820194,0.71809616,146.05,145.95,80.05972733]
[1768356820396,0.71809616,146.03,145.98,6.84992065]
[1768356820606,0.71809616,146.03,145.99,12.75157435]
[1768356821981,0.71809616,146.03,145.99,6.84965464]
[1768356823282,0.71809616,146.03,145.99,12.75157435]
[1768356823898,0.71809616,146.03,145.99,6.84963]
[1768356824607,0.71809616,146.02,145.99,6.84963]
[1768356826005,0.71809616,146.02,145.98,5.90191971]
[1768356826183,0.71809616,146.02,145.98,0.05999998]
[1768356826384,0.71809616,146.03,145.98,5.96191969]
[1768356827489,0.71809616,146.03,145.99,6.84978423]
[1768356828004,0.71809616,146.03,145.99,12.75170394]
[1768356829006,0.71809616,146.03,145.98,0.05999998]
[1768356829198,0.71809616,146.03,145.99,5.90191971]
[1768356830297,0.71809616,146.03,145.99,12.75144585]
[1768356831513,0.71809616,146.03,145.98,5.96191969]
[1768356831711,0.71809616,146.03,145.98,0.05999998]
[1768356832099,0.71809616,146.03,145.98,5.96191969]
[1768356832708,0.71809616,146.03,145.99,6.84978423]
[1768356832909,0.71809616,146.05,146.01,0.05999998]
[1768356833104,0.71809616,146.05,146.02,5.90191971]
[1768356833612,0.71809616,146.05,146.01,5.96191969]
[1768356833986,0.71809616,146.05,146.02,6.84837693]
[1768356834191,0.71809616,146.05,146.02,12.75029664]
[1768356836217,0.71809616,146.05,146.01,12.81076565]
[1768356836716,0.71809616,146.05,146.01,6.90884594]
[1768356837016,0.71809616,146.05,146.01,12.81076565]
[1768356838514,0.71809616,146.05,146.01,6.90884594]
[1768356839018,0.71809616,146.05,146.01,12.81076565]
[1768356840219,0.71809616,146.05,146.02,12.75012238]
[1768356840597,0.71809616,146.05,146.02,6.84820267]
[1768356840808,0.71809616,146.05,146.01,6.84874812]
[1768356841009,0.71809616,146.05,146.01,12.75066783]
[1768356841724,0.71809616,146.05,146.02,6.84824285]
[1768356842223,0.71809616,146.09,146.04,0.05999998]
[1768356842611,0.71809616,146.09,146.04,5.96191969]
[1768356842810,0.71809616,146.09,146.04,5.90191971]
[1768356843119,0.71809616,146.09,146.05,5.90191971]
[1768356843515,0.71809616,146.09,146.05,12.74884469]
[1768356843825,0.71809616,146.08,146.04,6.84736582]
[1768356844001,0.71809616,146.08,146.04,12.74928553]
[1768356844519,0.71809616,146.08,146.04,5.90191971]
[1768356844724,0.71809616,146.08,146.03,25.22967181]
[1768356846123,0.71809616,146.08,146.03,25.28967179]
[1768356848826,0.69518665,146.07,146.03,19.3277521]
[1768356849020,0.69518665,146.07,146.02,25.23011455]
[1768356850125,0.69518665,146.07,146.02,12.75011455]
[1768356850828,0.69518665,146.11,146.03,0.05999998]
[1768356851013,0.69518665,146.11,146.06,0.05999998]
[1768356851525,0.69518665,146.09,146.05,5.90191971]
[1768356854021,0.69518665,146.08,146.05,12.74875584]
[1768356854823,0.69518665,146.08,146.05,6.84683613]
[1768356855218,0.69518665,146.08,146.04,25.22925097]
[1768356855731,0.69518665,146.08,146.05,5.90191971]
[1768356856735,0.69518665,146.08,146.05,12.74888525]
[1768356857438,0.69518665,146.08,146.05,5.90191971]
[1768356858112,0.71765466,146.07,146.02,59.22806835]
[1768356858309,0.71765466,146.07,146.03,5.90191971]
[1768356858310,0.68765467,146.07,146.03,5.90191971]
[1768356858742,12.74804993,146.07,146.02,52.38]
[1768356858914,12.74804993,146.07,146.02,59.22837691]
[1768356859117,6.84613022,146.07,146.02,65.13029662]
[1768356859316,6.84613022,146.07,146.02,46.74837691]
[1768356859517,6.84613022,146.07,146.02,52.65029662]
[1768356859715,6.84369011,146.12,146.06,5.90191971]
[1768356859918,6.84369011,146.12,146.05,6.77011067]
[1768356860118,6.84369011,146.12,146.06,12.74830723]
[1768356860421,0.71765466,146.11,146.06,6.84638752]
[1768356860630,0.71765466,146.11,146.06,12.74830723]
[1768356861938,0.71765466,146.11,146.06,6.84638752]
[1768356862131,0.71765466,146.11,146.06,12.74830723]
[1768356862333,0.71765466,146.11,146.06,6.84638752]
[1768356863838,0.71765466,146.1,146.05,5.90191971]
[1768356864027,0.71765466,146.1,146.05,6.84682142]
[1768356864028,0.71765466,146.09,146.05,6.84682142]
[1768356864229,0.71765466,146.09,146.02,57.0204481]
[1768356864230,0.71765466,146.08,146.02,23.02236781]
[1768356864429,0.71765466,146.08,146.03,18.38191971]
[1768356864630,0.71765466,146.08,146.03,12.48]
[1768356865147,0.71765466,146.08,146.03,19.3277761]
[1768356865446,0.71765466,146.08,146.03,25.22969581]
[1768356865640,0.71765466,146.08,146.03,19.3277761]
[1768356865823,0.71765466,146.08,146.03,25.22969581]
[1768356866226,0.71765466,146.08,146.02,24.058825]
[1768356866433,0.71765466,146.08,146.03,12.48]
[1768356866621,0.71765466,146.07,146.03,12.48]
[1768356866840,0.71765466,146.07,146.03,18.38191971]
[1768356867853,0.71765466,146.07,146.04,6.84743905]
[1768356869558,0.71765466,146.08,146.04,6.84743905]
[1768356869758,0.71765466,146.08,146.04,12.74935876]
[1768356870136,0.71765466,146.1,146.06,0.08999997]
[1768356870332,0.71765466,146.1,146.04,12.83935873]
[1768356871346,0.71765466,146.09,146.04,42.43795637]
[1768356872161,0.71765466,146.09,146.04,36.53603666]
[1768356872362,0.71765466,146.09,146.04,42.43795637]
[1768356872558,0.71765466,146.08,146.03,12.48]
[1768356872860,0.71765466,146.08,146.03,12.56999997]
[1768356873082,0.71765466,146.08,146.03,19.41780041]
[1768356873671,0.71765466,146.06,146.02,6.84820696]
[1768356875380,0.68765467,146.06,146.02,6.84820696]
[1768356876754,0.68765467,146.06,146.0,6.96903988]
[1768356876755,10.62426605,146.06,146.0,6.96903988]
[1768356877466,0.68770137,146.05,146.0,6.96903988]
[1768356878479,0.68770137,146.05,146.01,6.84883984]
[1768356879180,4.46507505,146.02,145.97,52.3927545]
[1768356879387,0.68770137,146.01,145.97,46.87055306]
[1768356879559,0.65770138,146.01,145.97,0.11999996]
[1768356879760,3.77737368,146.03,145.98,6.85019204]
[1768356881083,3.77737368,146.03,145.98,7.00019199]
[1768356881583,4.46507505,146.03,145.98,7.00019199]
[1768356881958,3.77737368,146.02,145.98,7.00019199]
[1768356882574,3.77737368,146.02,145.98,19.48019199]
[1768356884177,4.46507505,146.02,145.98,19.48019199]
[1768356885376,4.46507505,146.02,145.98,12.62999995]
[1768356885572,4.46507505,146.02,145.95,17.12849951]
[1768356885573,4.46507505,146.0,145.95,12.48]
[1768356885774,3.77737368,145.98,145.95,19.48134394]
[1768356886082,3.74737369,145.98,145.95,19.48134394]
[1768356889491,4.46507505,145.99,145.95,19.48134394]
[1768356889878,3.77737368,145.99,145.96,0.14999995]
[1768356890291,0.68770137,146.0,145.96,0.14999995]
[1768356890478,3.77737368,145.99,145.96,0.14999995]
[1768356891394,3.77737368,145.99,145.96,7.00114605]
[1768356891602,0.68770137,146.01,145.97,0.14999995]
[1768356891890,4.46507505,146.01,145.97,0.14999995]
[1768356893285,4.46507505,146.01,145.97,7.00055398]
[1768356895900,0.68770137,146.01,145.97,7.00055398]
[1768356896092,4.46507505,146.01,145.97,7.00055398]
[1768356897701,0.68770137,146.0,145.96,7.00119205]
[1768356897888,4.46507505,146.01,145.97,0.14999995]
[1768356898291,0.68770137,146.0,145.96,7.00119205]
[1768356900296,0.68770137,146.02,145.98,0.14999995]
[1768356900503,0.68770137,146.05,146.0,0.14999995]
[1768356900798,4.46507505,146.05,146.0,0.14999995]
[1768356901496,4.46507505,146.03,145.99,12.48]
[1768356901809,6.84707664,146.05,145.95,12.48]
[1768356901810,0.68770137,145.99,145.95,12.48]
[1768356901983,0.68770137,146.0,145.96,7.0008102]
[1768356902300,0.68770137,146.02,145.97,7.00056254]
[1768356902504,0.68770137,146.02,145.97,27.90474309]
[1768356902804,0.68770137,146.02,145.98,0.14999995]
[1768356903801,0.68770137,146.02,145.99,6.84978423]
[1768356904005,0.68770137,146.01,145.96,0.14999995]
[1768356904311,0.68770137,146.0,145.96,0.14999995]
[1768356904515,0.68770137,146.0,145.96,7.0008408]
[1768356905406,0.68770137,146.0,145.97,6.85059607]
[1768356905934,0.6689162,146.01,145.97,6.85059607]
[1768356906299,4.44628988,146.01,145.97,6.85059607]
[1768356906499,0.6689162,146.0,145.96,7.00106463]
[1768356910500,0.6689162,146.0,145.96,6.85106468]
[1768356910705,0.6689162,146.0,145.96,10.62843836]
[1768356911021,0.6689162,146.0,145.96,7.00106463]
[1768356912704,0.6689162,145.96,145.91,0.14999995]
[1768356912932,19.32884596,146.01,145.91,6.85351885]
[1768356912933,0.6689162,145.94,145.91,6.85351885]
[1768356913106,3.77737368,145.96,145.91,6.85351885]
[1768356913426,3.77737368,145.96,145.91,0.65305975]
[1768356913629,17.12328767,146.0,145.91,0.65305975]
[1768356913931,3.77737368,145.95,145.91,0.65305975]
[1768356914126,3.77737368,145.96,145.91,7.50654836]
[1768356915032,0.6689162,145.95,145.91,7.50654836]
[1768356917031,0.6689162,145.95,145.91,11.28392204]
[1768356917230,0.6689162,145.95,145.91,7.50654836]
[1768356918312,0.6689162,145.95,145.91,7.50654431]
[1768356918738,0.7079178,145.94,145.91,6.85348456]
[1768356919132,0.7079178,145.94,145.91,7.52989347]
[1768356919433,4.48529148,145.95,145.91,7.52989347]
[1768356920231,0.7079178,145.94,145.9,6.85384034]
[1768356920429,0.7079178,145.94,145.9,7.53024925]
[1768356921232,0.7079178,145.94,145.9,6.85384034]
[1768356922628,0.7079178,145.93,145.89,7.53069853]
[1768356923029,0.7079178,145.95,145.91,0.67640891]
[1768356924534,4.48529148,145.95,145.91,7.52959267]
[1768356925032,0.7079178,145.94,145.91,7.52959267]
[1768356925817,0.7079178,145.94,145.91,6.85318376]
[1768356929238,0.7079178,145.94,145.91,7.52959267]
[1768356929945,0.7079178,145.98,145.94,0.67640891]
[1768356930242,0.7079178,145.98,145.94,10.62910709]
[1768356930815,0.7079178,145.98,145.94,23.10910709]
[1768356931018,0.7079178,145.98,145.94,23.785516]
[1768356931229,6.84790796,146.03,145.96,4.45378259]
[1768356931438,6.84697021,146.05,145.98,0.67640891]
[1768356931743,0.7079178,146.02,145.97,3.77737368]
[1768356932048,4.48529148,146.01,145.97,6.85072275]
[1768356932424,0.7079178,146.0,145.97,6.85072275]
[1768356932933,0.7079178,146.01,145.97,6.85072275]
[1768356933237,0.7079178,146.0,145.97,6.85072275]
[1768356934023,0.7079178,146.02,145.97,7.52713166]
[1768356934226,0.7079178,146.01,145.97,7.52713166]
[1768356936450,0.7079178,146.01,145.97,6.85072275]
[1768356936751,0.7079178,146.01,145.97,7.51127939]
[1768356943740,0.7079178,146.01,145.97,13.41744]
[1768356944370,0.66682196,146.07,146.01,0.66055664]
[1768356944544,104.2,146.11,145.97,23.97752962]
[1768356944545,0.66682196,146.06,146.02,6.56671725]
[1768356944753,0.66682196,146.06,146.02,0.66055664]
[1768356945449,5.90616061,146.07,146.02,0.66055664]
[1768356945450,0.66682196,146.07,146.04,0.66055664]
[1768356945630,5.90616061,146.09,146.05,0.66055664]
[1768356945631,0.66682196,146.09,146.05,0.66055664]
[1768356946247,0.66682196,146.09,146.05,7.50723948]
[1768356946832,5.90616061,146.1,146.06,0.66055664]
[1768356947051,13.41720445,146.11,146.06,0.66055664]
[1768356947247,7.51104384,146.11,146.06,0.66055664]
[1768356947552,13.41720445,146.11,146.06,0.66055664]
[1768356947958,0.66682196,146.1,146.06,0.66055664]
[1768356948454,0.66682196,146.1,146.06,7.50698285]
[1768356950543,0.66682196,146.09,146.05,19.9873692]
[1768356951055,0.66682196,146.1,146.06,7.5069324]
[1768356951248,6.57298257,146.1,146.06,7.5069324]
[1768356951556,0.66682196,146.09,146.06,6.84637576]
[1768356952864,0.66682196,146.09,146.05,19.98733161]
[1768356954852,0.66682196,146.09,146.05,19.32677497]
[1768356956361,0.66682196,146.09,146.05,19.98733161]
[1768356956671,6.57298257,146.09,146.05,19.98733161]
[1768356956966,0.66682196,146.08,146.05,19.98733161]
[1768356957471,6.57298257,146.09,146.05,19.98733161]
[1768356959170,0.66682196,146.09,146.05,19.98733161]
[1768356959555,0.66682196,146.09,146.05,25.89349222]
[1768356959771,0.66682196,146.09,146.05,13.41349222]
[1768356959976,0.66682196,146.09,146.05,19.98733161]
[1768356961552,0.66682196,146.06,146.02,19.98862347]
[1768356961751,0.66682196,146.06,146.03,6.84780562]
[1768356962058,0.66682196,146.06,146.02,19.98873247]
[1768356962649,0.66682196,146.06,146.03,6.84788149]
[1768356963767,0.66682196,146.07,146.04,0.66055664]
[1768356964071,0.66682196,146.09,146.05,13.14055664]
[1768356964274,0.66682196,146.08,146.05,12.48]
[1768356964473,0.66682196,146.08,146.04,0.66055664]
[1768356964779,0.66682196,146.08,146.04,13.14055664]
[1768356965072,0.66682196,146.08,146.04,0.66055664]
[1768356965259,0.66682196,146.08,146.05,6.84697021]
[1768356969175,0.66682196,146.08,146.04,7.53611059]
[1768356969779,0.66682196,146.08,146.04,6.84723889]
[1768356969967,0.70640689,146.09,146.05,0.6888717]
[1768356970276,0.70640689,146.08,146.05,0.6888717]
[1768356970783,0.70640689,146.09,146.05,7.53577555]
[1768356970975,13.45730293,146.1,146.06,0.6888717]
[1768356971774,13.45730293,146.1,146.05,7.53577555]
[1768356971775,6.6125675,146.09,146.05,7.53577555]
[1768356972279,0.70640689,146.09,146.05,7.53577555]
[1768356972461,0.70640689,146.08,146.05,7.53577555]
[1768356974366,0.70640689,146.07,146.02,0.6888717]
[1768356974569,0.70640689,146.07,146.03,20.01659031]
[1768356975671,12.75174564,146.08,146.04,13.44217742]
[1768356975672,0.70640689,146.08,146.04,13.44217742]
[1768356975982,0.70640689,146.08,146.04,7.53601681]
[1768356977488,0.70640689,146.08,146.04,6.84714511]
[1768356977887,0.67376653,146.07,146.03,12.48]
[1768356978185,5.90616061,146.08,146.01,39.9]
[1768356978186,0.099,146.04,146.01,39.9]
[1768356978390,0.099,146.04,146.01,6.84866257]
[1768356978772,0.57376653,146.07,146.02,0.68159847]
[1768356978977,0.57376653,146.07,146.03,7.5294644]
[1768356979690,0.57376653,146.07,146.03,6.84786593]
[1768356979982,0.099,146.06,146.02,6.84825132]
[1768356980185,0.099,146.06,146.02,19.32825132]
[1768356980387,0.099,146.06,146.03,6.84788178]
[1768356980968,0.099,146.06,146.02,19.32824086]
[1768356981482,0.099,146.06,146.02,6.84824086]
[1768356983686,0.56901886,146.05,146.01,13.16159847]
[1768356983994,0.099,146.06,146.02,0.68159847]
[1768356984585,0.099,146.06,146.01,25.91646251]
[1768356985186,0.099,146.06,146.01,20.0103019]
[1768356985389,0.099,146.06,146.01,25.91646251]
[1768356985693,0.56901886,146.05,146.01,20.0103019]
[1768356986694,0.10370019,146.04,146.0,19.32917297]
[1768356987488,0.10370019,146.04,146.0,20.01077144]
[1768356988095,5.90616061,146.05,146.0,20.01077144]
[1768356988295,5.90616061,146.05,146.0,13.16159847]
[1768356988591,0.57376653,146.04,146.0,12.48]
[1768356989876,7.42126291,146.04,146.0,12.48]
[1768356990075,0.099,146.03,146.0,12.48]
[1768356991171,0.099,146.03,146.0,19.32929219]
[1768356991489,5.90616061,146.04,146.0,20.01089066]
[1768356991701,6.47992714,146.05,146.0,20.01089066]
[1768356992106,29.5944044,146.08,146.01,0.68159847]
[1768356992107,0.099,146.08,146.01,0.68159847]
[1768356992397,7.4184353,146.1,146.02,0.68159847]
[1768356992701,5.90616061,146.09,146.04,0.68159847]
[1768356993198,6.00516061,146.09,146.04,0.68159847]
[1768356993406,6.47517947,146.08,146.04,0.68159847]
[1768356993706,0.10370019,146.07,146.03,20.00948918]
[1768356996191,0.10370019,146.07,146.03,7.52948918]
[1768356996393,0.10370019,146.07,146.03,20.00948918]
[1768356997109,13.32533823,146.09,146.04,0.66306918]
[1768356997596,13.32533823,146.09,146.04,7.51024295]
[1768356997803,6.47992714,146.09,146.05,0.66306918]
[1768356998807,6.47992714,146.09,146.05,7.50990623]
[1768356999021,0.57376653,146.11,146.06,0.66306918]
[1768356999422,3.77524985,146.11,146.07,0.66306918]
[1768356999604,0.1,146.14,146.07,0.66306918]
[1768356999913,3.97895004,146.14,146.07,0.66306918]
[1768357000115,3.97895004,146.14,146.08,0.66306918]
[1768357000307,0.20370019,146.14,146.1,0.66306918]
[1768357001104,0.1,146.14,146.11,0.66306918]
[1768357001405,0.1,146.15,146.13,0.66306918]
[1768357001606,0.1,146.15,146.13,0.60306918]
[1768357003108,0.1,146.15,146.13,7.44605726]
[1768357003928,0.1,146.15,146.12,13.14306918]
[1768357005326,0.20429419,146.15,146.12,12.48]
[1768357005548,0.62317761,146.14,146.11,12.48]
[1768357006044,0.1,146.15,146.11,19.98714556]
[1768357006406,0.199,146.15,146.11,19.98706013]
[1768357009230,3.97424985,146.15,146.11,19.98706013]
[1768357009623,3.87524985,146.15,146.12,0.66306918]
[1768357009828,0.1,146.15,146.12,0.66306918]
[1768357010026,3.87524985,146.15,146.12,0.66306918]
[1768357011710,0.1,146.15,146.12,0.66306918]
[1768357012106,0.62841886,146.14,146.09,0.66306918]
[1768357012315,0.1,146.15,146.06,7.50957061]
[1768357012316,3.88473288,146.11,146.06,7.50957061]
[1768357012921,3.88473288,146.11,146.07,0.66306918]
[1768357013122,3.77524985,146.12,146.07,0.66306918]
[1768357013639,0.1,146.15,146.09,0.66306918]
[1768357014035,0.1,146.15,146.1,0.66306918]
[1768357014232,0.1,146.15,146.12,0.66306918]
[1768357015842,0.1,146.15,146.13,0.66306918]
[1768357016438,0.1,146.15,146.12,7.50650125]
[1768357017217,0.1,146.16,146.14,0.66306918]
[1768357017820,0.1,146.16,146.13,0.66306918]
[1768357018438,0.1,146.16,146.13,7.50614493]
[1768357019458,0.1,146.16,146.14,6.84270432]
[1768357019941,0.63376653,146.19,146.15,0.66306918]
[1768357020123,3.77524985,146.19,146.15,0.66306918]
[1768357020322,4.43156738,146.19,146.15,0.66306918]
[1768357020538,0.65631753,146.19,146.15,0.66306918]
[1768357020841,4.43156738,146.19,146.15,0.66306918]
[1768357021018,3.77524985,146.18,146.15,0.66306918]
[1768357021426,3.77524985,146.17,146.15,0.66306918]
[1768357021628,3.77524985,146.17,146.12,12.48]
[1768357021629,3.77524985,146.17,146.13,0.66306918]
[1768357021819,3.95092436,146.18,146.14,7.50547479]
[1768357022016,6.84077026,146.19,146.12,29.58852752]
[1768357022017,3.77524985,146.2,146.16,0.66306918]
[1768357022238,3.77524985,146.19,146.15,6.84212394]
[1768357022447,3.77524985,146.18,146.15,7.50519312]
[1768357022819,3.95092436,146.19,146.15,7.50519312]
[1768357023020,0.65151109,146.18,146.15,0.66306918]
[1768357023266,3.95568273,146.17,146.13,0.66306918]
[1768357023564,0.18509655,146.15,146.1,0.66306918]
[1768357023762,0.64218328,146.14,146.09,0.66306918]
[1768357024066,3.96491726,146.13,146.08,0.66306918]
[1768357024259,3.96491726,146.13,146.08,7.50835265]
[1768357024563,0.18966741,146.13,146.09,6.84487312]
[1768357025440,3.96491726,146.13,146.09,6.84487312]
[1768357025658,0.63765812,146.12,146.08,7.5084759]
[1768357031063,0.63765812,146.12,146.05,44.68961301]
[1768357031064,3.97378793,146.09,146.05,6.84651552]
[1768357031446,3.77524985,146.07,146.03,0.68413445]
[1768357031763,3.77524985,146.06,146.02,19.32811179]
[1768357031947,3.77524985,146.06,146.02,20.01224624]
[1768357032141,3.97809131,146.07,146.02,20.01224624]
[1768357032343,0.62044024,146.04,145.99,6.37677829]
[1768357032539,4.24414353,146.04,145.99,7.53387917]
[1768357032763,4.24414353,146.04,146.0,7.53343019]
[1768357033346,4.24414353,146.04,146.0,0.68413445]
[1768357033746,4.24414353,146.04,146.0,7.53342001]
[1768357034042,0.46889368,146.04,146.0,7.53342001]
[1768357034261,4.24414353,146.04,146.0,7.53342001]
[1768357034768,4.24414353,146.04,146.0,7.53334453]
[1768357035758,3.98644287,146.03,145.98,13.16413445]
[1768357036158,3.98644287,146.03,145.99,6.84975694]
[1768357036464,3.98644287,146.03,145.99,7.53389139]
[1768357036662,0.21119302,146.03,145.99,7.53389139]